[Event "Live Chess"]
[Site "Chess.com"]
[Date "2023.05.20"]
[Round "-"]
[White "Hussamalhaidar"]
[Black "Mikhail_Golubev"]
[Result "0-1"]
[WhiteElo "1036"]
[BlackElo "2505"]
[TimeControl "300"]
[EndTime "15:25:57 PDT"]
[Termination "Mikhail_Golubev won by resignation"]

1. b3 {[%clk 0:04:54.6]} 1... d6 {[%clk 0:04:56.2]} 2. Bb2 {[%clk 0:04:53]} 2...
Nd7 {[%clk 0:04:56.1]} 3. e4 {[%clk 0:04:47.5]} 3... Ngf6 {[%clk 0:04:54]} 4.
Nc3 {[%clk 0:04:42.1]} 4... c5 {[%clk 0:04:52.5]} 5. f4 {[%clk 0:04:33.5]} 5...
g6 {[%clk 0:04:38.5]} 6. Nd5 {[%clk 0:04:28.2]} 6... Bg7 {[%clk 0:04:34.4]} 7.
Nxf6+ {[%clk 0:04:24.5]} 7... Bxf6 {[%clk 0:04:25.3]} 8. Bxf6 {[%clk 0:04:11.7]}
8... Nxf6 {[%clk 0:04:22.7]} 9. e5 {[%clk 0:04:09.7]} 9... Nh5 {[%clk
0:03:47.8]} 10. g3 {[%clk 0:03:40.9]} 10... dxe5 {[%clk 0:03:46.3]} 11. Bb5+
{[%clk 0:03:33.1]} 11... Kf8 {[%clk 0:03:31.5]} 12. fxe5 {[%clk 0:03:23.2]}
12... Qd5 {[%clk 0:03:30]} 13. Qf3 {[%clk 0:03:13.7]} 13... Qxe5+ {[%clk
0:03:26.2]} 14. Ne2 {[%clk 0:02:28.4]} 14... Qxa1+ {[%clk 0:03:22.1]} 15. Kf2
{[%clk 0:02:26.2]} 15... Qf6 {[%clk 0:03:18.6]} 16. Qxf6 {[%clk 0:02:23.3]}
16... Nxf6 {[%clk 0:03:17]} 17. Rf1 {[%clk 0:02:20.6]} 17... Kg7 {[%clk
0:03:15.9]} 18. Bc4 {[%clk 0:02:18.4]} 18... Bf5 {[%clk 0:03:13.7]} 19. d3
{[%clk 0:02:13]} 19... a6 {[%clk 0:03:11.6]} 20. Nf4 {[%clk 0:02:06.4]} 20... b5
{[%clk 0:03:00]} 21. Bd5 {[%clk 0:01:51.3]} 21... Rad8 {[%clk 0:02:57.6]} 22.
Bb7 {[%clk 0:01:44.5]} 22... e5 {[%clk 0:02:51.9]} 23. Ne2 {[%clk 0:01:38.7]}
23... e4 {[%clk 0:02:47.3]} 24. Bxa6 {[%clk 0:01:33.3]} 24... exd3 {[%clk
0:02:45.9]} 25. cxd3 {[%clk 0:01:29.7]} 25... Ng4+ {[%clk 0:02:42.9]} 26. Kg2
{[%clk 0:01:20.8]} 26... Ne3+ {[%clk 0:02:40.7]} 27. Kg1 {[%clk 0:01:16.3]}
27... Nxf1 {[%clk 0:02:40.6]} 28. Kxf1 {[%clk 0:01:14.8]} 28... Bxd3 {[%clk
0:02:39.9]} 29. Kf2 {[%clk 0:01:10.3]} 29... Ra8 {[%clk 0:02:38.6]} 30. Bb7
{[%clk 0:01:05.2]} 30... Rxa2 {[%clk 0:02:37.5]} 31. Bd5 {[%clk 0:00:59.2]}
31... Rxe2+ {[%clk 0:02:34.3]} 32. Kf3 {[%clk 0:00:57.3]} 32... Rhe8 {[%clk
0:02:34]} 0-1

[Event "Live Chess"]
[Site "Chess.com"]
[Date "2023.05.20"]
[Round "-"]
[White "GEMdzq"]
[Black "CheckThis4"]
[Result "0-1"]
[WhiteElo "2226"]
[BlackElo "2533"]
[TimeControl "300"]
[EndTime "15:26:00 PDT"]
[Termination "CheckThis4 won by resignation"]

1. e4 {[%clk 0:04:57.7]} 1... Nc6 {[%clk 0:04:58.2]} 2. Bc4 {[%clk 0:04:54.2]}
2... Nf6 {[%clk 0:04:54.3]} 3. Nc3 {[%clk 0:04:46.3]} 3... e6 {[%clk 0:04:50.6]}
4. Nf3 {[%clk 0:04:32.1]} 4... d5 {[%clk 0:04:49.1]} 5. exd5 {[%clk 0:04:30.8]}
5... exd5 {[%clk 0:04:49]} 6. Bb5 {[%clk 0:04:29.5]} 6... Bd6 {[%clk 0:04:46.7]}
7. O-O {[%clk 0:04:27.3]} 7... O-O {[%clk 0:04:45.3]} 8. d4 {[%clk 0:04:26.5]}
8... Bg4 {[%clk 0:04:44.1]} 9. Bg5 {[%clk 0:04:22.9]} 9... Bxf3 {[%clk
0:04:41.4]} 10. gxf3 {[%clk 0:04:11.6]} 10... h6 {[%clk 0:04:40]} 11. Bh4 {[%clk
0:04:09.4]} 11... Bf4 {[%clk 0:04:29.3]} 12. Ne2 {[%clk 0:04:05.1]} 12... Qd6
{[%clk 0:04:25.4]} 13. Nxf4 {[%clk 0:03:55.7]} 13... Qxf4 {[%clk 0:04:23.6]} 14.
Bg3 {[%clk 0:03:55]} 14... Qxd4 {[%clk 0:04:18.4]} 15. Bxc6 {[%clk 0:03:53.9]}
15... Qxd1 {[%clk 0:04:17.2]} 16. Raxd1 {[%clk 0:03:52.6]} 16... bxc6 {[%clk
0:04:16.4]} 17. Bxc7 {[%clk 0:03:51.3]} 17... Rfe8 {[%clk 0:04:15.6]} 18. Rfe1
{[%clk 0:03:48.2]} 18... Nd7 {[%clk 0:04:09.2]} 19. Bd6 {[%clk 0:03:35.7]} 19...
f6 {[%clk 0:04:05.1]} 20. Re3 {[%clk 0:03:32.5]} 20... Kf7 {[%clk 0:04:02.2]}
21. Kf1 {[%clk 0:03:13.1]} 21... Rxe3 {[%clk 0:03:59.1]} 22. fxe3 {[%clk
0:03:12.2]} 22... Nb6 {[%clk 0:03:58.2]} 23. Kf2 {[%clk 0:03:06.1]} 23... Nc4
{[%clk 0:03:56.8]} 24. Bc5 {[%clk 0:03:00.6]} 24... Nxb2 {[%clk 0:03:53.9]} 25.
Rb1 {[%clk 0:02:59.6]} 25... Na4 {[%clk 0:03:52.8]} 26. Rb7+ {[%clk 0:02:58.3]}
26... Ke6 {[%clk 0:03:47.8]} 27. Re7+ {[%clk 0:02:51]} 27... Kf5 {[%clk
0:03:46.8]} 28. Bd6 {[%clk 0:02:42.8]} 28... g5 {[%clk 0:03:36.2]} 29. Rc7
{[%clk 0:02:26.1]} 29... Ke6 {[%clk 0:03:24.7]} 30. Bg3 {[%clk 0:02:25.1]} 30...
c5 {[%clk 0:03:21.9]} 31. Rc6+ {[%clk 0:02:21.2]} 31... Kf5 {[%clk 0:03:20.5]}
32. Rd6 {[%clk 0:02:14.7]} 32... Nb6 {[%clk 0:03:19.4]} 33. Rc6 {[%clk
0:02:11.2]} 33... Rc8 {[%clk 0:03:17.9]} 34. Rd6 {[%clk 0:02:04.2]} 34... h5
{[%clk 0:03:16.7]} 35. h4 {[%clk 0:02:01.3]} 35... c4 {[%clk 0:03:05.9]} 36. c3
{[%clk 0:01:51.4]} 36... Rc5 {[%clk 0:02:49.8]} 37. Rd8 {[%clk 0:01:42.3]} 37...
Ra5 {[%clk 0:02:47.1]} 38. Bc7 {[%clk 0:01:32.8]} 38... gxh4 {[%clk 0:02:42.5]}
39. a4 {[%clk 0:01:26.7]} 39... Rxa4 {[%clk 0:02:37.8]} 40. Bxb6 {[%clk
0:01:25.5]} 40... Ra2+ {[%clk 0:02:36.9]} 41. Kg1 {[%clk 0:01:24]} 41... axb6
{[%clk 0:02:35.8]} 42. Rxd5+ {[%clk 0:01:22.9]} 42... Kg6 {[%clk 0:02:34.7]} 43.
Rd4 {[%clk 0:01:22]} 43... Re2 {[%clk 0:02:31.4]} 44. e4 {[%clk 0:01:21]} 44...
Re3 {[%clk 0:02:28.5]} 45. Rxc4 {[%clk 0:01:18.5]} 45... Rxf3 {[%clk 0:02:27.3]}
46. Rc6 {[%clk 0:01:17.1]} 46... Kg5 {[%clk 0:02:24.6]} 47. Kg2 {[%clk 0:01:13]}
47... Re3 {[%clk 0:02:20.6]} 48. Rxb6 {[%clk 0:01:04.6]} 48... Rxc3 {[%clk
0:02:12.1]} 49. Rb5+ {[%clk 0:01:02.2]} 49... Kg4 {[%clk 0:02:10.6]} 50. e5
{[%clk 0:00:58.9]} 50... h3+ {[%clk 0:02:06.4]} 51. Kf2 {[%clk 0:00:49.2]} 51...
f5 {[%clk 0:01:57.2]} 52. e6 {[%clk 0:00:46.7]} 52... Rc2+ {[%clk 0:01:54.3]}
53. Ke3 {[%clk 0:00:45.7]} 53... f4+ {[%clk 0:01:52.9]} 54. Kd3 {[%clk
0:00:44.1]} 54... Rc1 {[%clk 0:01:43.3]} 55. Re5 {[%clk 0:00:37.4]} 55... h2
{[%clk 0:01:40.6]} 56. e7 {[%clk 0:00:36.2]} 56... Rc8 {[%clk 0:01:32.1]} 57.
Re1 {[%clk 0:00:32.1]} 57... Kf3 {[%clk 0:01:30.6]} 58. Kd4 {[%clk 0:00:21.8]}
58... Re8 {[%clk 0:01:23.1]} 0-1

[Event "Live Chess"]
[Site "Chess.com"]
[Date "2023.05.20"]
[Round "-"]
[White "Long1968"]
[Black "xx_blindpuffin_xx"]
[Result "0-1"]
[WhiteElo "1202"]
[BlackElo "2212"]
[TimeControl "300"]
[EndTime "15:26:04 PDT"]
[Termination "xx_blindpuffin_xx won on time"]

1. e4 {[%clk 0:04:54.8]} 1... c6 {[%clk 0:04:57.8]} 2. d4 {[%clk 0:04:49.5]}
2... d5 {[%clk 0:04:56.7]} 3. e5 {[%clk 0:04:47.1]} 3... Bf5 {[%clk 0:04:55.1]}
4. Bd3 {[%clk 0:04:44.2]} 4... Bxd3 {[%clk 0:04:53.2]} 5. Qxd3 {[%clk
0:04:42.2]} 5... e6 {[%clk 0:04:53.1]} 6. f4 {[%clk 0:04:38.8]} 6... h5 {[%clk
0:04:51.6]} 7. Nf3 {[%clk 0:04:33.8]} 7... Nh6 {[%clk 0:04:50.2]} 8. c3 {[%clk
0:04:22.5]} 8... Nf5 {[%clk 0:04:48.4]} 9. O-O {[%clk 0:04:14]} 9... Nd7 {[%clk
0:04:46.3]} 10. b4 {[%clk 0:04:01.5]} 10... a5 {[%clk 0:04:33.1]} 11. Bd2 {[%clk
0:03:42.7]} 11... h4 {[%clk 0:04:26.6]} 12. Be1 {[%clk 0:02:31.9]} 12... Qb6
{[%clk 0:04:22]} 13. Nbd2 {[%clk 0:02:16.3]} 13... axb4 {[%clk 0:04:19]} 14.
cxb4 {[%clk 0:02:07.7]} 14... Qxb4 {[%clk 0:04:15.9]} 15. Rb1 {[%clk 0:02:00.8]}
15... Ra3 {[%clk 0:04:12.7]} 16. Rxb4 {[%clk 0:01:51]} 16... Rxd3 {[%clk
0:04:10.2]} 17. Rxb7 {[%clk 0:01:48.4]} 17... c5 {[%clk 0:04:09.2]} 18. dxc5
{[%clk 0:01:19.1]} 18... Bxc5+ {[%clk 0:04:09.1]} 19. Bf2 {[%clk 0:01:09.9]}
19... Bxf2+ {[%clk 0:04:03.9]} 20. Kxf2 {[%clk 0:01:00.1]} 20... Ra3 {[%clk
0:03:55.6]} 21. Rc1 {[%clk 0:00:51.3]} 21... Ke7 {[%clk 0:03:43.2]} 22. Rcc7
{[%clk 0:00:37.2]} 22... Rd8 {[%clk 0:03:40]} 23. Ng5 {[%clk 0:00:20.9]} 23...
Rxa2 {[%clk 0:03:32.6]} 24. Ke2 {[%clk 0:00:15.8]} 24... Nd4+ {[%clk 0:03:25.7]}
25. Kd3 {[%clk 0:00:08.5]} 25... Nf5 {[%clk 0:03:24.3]} 26. Nxf7 {[%clk
0:00:03.2]} 26... Kxf7 {[%clk 0:03:24.2]} 0-1

[Event "Live Chess"]
[Site "Chess.com"]
[Date "2023.05.20"]
[Round "-"]
[White "Duke_of_Bebington"]
[Black "JoeRoot66"]
[Result "0-1"]
[WhiteElo "1575"]
[BlackElo "1923"]
[TimeControl "300"]
[EndTime "15:26:04 PDT"]
[Termination "JoeRoot66 won by resignation"]

1. e4 {[%clk 0:04:58]} 1... c6 {[%clk 0:04:57.8]} 2. d4 {[%clk 0:04:56.5]} 2...
d5 {[%clk 0:04:57.7]} 3. e5 {[%clk 0:04:55.8]} 3... Bf5 {[%clk 0:04:57.2]} 4. g4
{[%clk 0:04:54.6]} 4... Bg6 {[%clk 0:04:56.5]} 5. h4 {[%clk 0:04:53.6]} 5... h5
{[%clk 0:04:56.1]} 6. Bd3 {[%clk 0:04:42.3]} 6... Bxd3 {[%clk 0:04:54.3]} 7.
Qxd3 {[%clk 0:04:42.2]} 7... hxg4 {[%clk 0:04:53.7]} 8. e6 {[%clk 0:04:40.5]}
8... Nf6 {[%clk 0:04:48.8]} 9. exf7+ {[%clk 0:04:38.1]} 9... Kxf7 {[%clk
0:04:48.7]} 10. h5 {[%clk 0:04:25.5]} 10... Rxh5 {[%clk 0:04:41.6]} 11. Rxh5
{[%clk 0:04:21.5]} 11... Nxh5 {[%clk 0:04:41.5]} 12. Bg5 {[%clk 0:04:13.3]}
12... Nf6 {[%clk 0:04:39.8]} 13. Ne2 {[%clk 0:04:06.3]} 13... Ne4 {[%clk
0:04:37.4]} 14. f3 {[%clk 0:03:58.4]} 14... Nxg5 {[%clk 0:04:35.9]} 15. Qf5+
{[%clk 0:03:55.9]} 15... Kg8 {[%clk 0:04:32.7]} 16. Qxg5 {[%clk 0:03:52.8]}
16... gxf3 {[%clk 0:04:31.8]} 17. Nf4 {[%clk 0:03:39.4]} 17... Nd7 {[%clk
0:04:28.9]} 18. Nd2 {[%clk 0:03:32.8]} 18... Nf6 {[%clk 0:04:27.4]} 19. Nxf3
{[%clk 0:03:30.8]} 19... Qb6 {[%clk 0:04:23]} 20. O-O-O {[%clk 0:03:27.3]} 20...
Qa6 {[%clk 0:04:16.9]} 21. Kb1 {[%clk 0:03:17.1]} 21... Re8 {[%clk 0:04:10.5]}
22. Ne6 {[%clk 0:03:12.1]} 22... Qe2 {[%clk 0:04:03.4]} 23. Rh1 {[%clk
0:02:51.6]} 23... Qxf3 {[%clk 0:03:56.1]} 24. Qh4 {[%clk 0:02:36.3]} 24... Qe4
{[%clk 0:03:48.6]} 25. Qh8+ {[%clk 0:02:31.4]} 25... Kf7 {[%clk 0:03:47.8]} 26.
Ng5+ {[%clk 0:02:30.1]} 26... Kg6 {[%clk 0:03:46.4]} 27. Nxe4 {[%clk 0:02:25.6]}
27... dxe4 {[%clk 0:03:46.3]} 28. Rg1+ {[%clk 0:02:22.1]} 28... Kf7 {[%clk
0:03:44.2]} 29. Qh3 {[%clk 0:02:09.5]} 29... e6 {[%clk 0:03:41.8]} 30. Kc1
{[%clk 0:02:06.8]} 30... g6 {[%clk 0:03:34.4]} 31. Qg3 {[%clk 0:02:03.7]} 31...
Bh6+ {[%clk 0:03:32]} 32. Kd1 {[%clk 0:02:01.7]} 32... Rg8 {[%clk 0:03:26.3]}
33. Ke2 {[%clk 0:01:53.8]} 33... Nd5 {[%clk 0:03:24.2]} 34. Qe5 {[%clk
0:01:45.1]} 34... Bf4 {[%clk 0:03:13.4]} 35. Qxe4 {[%clk 0:01:41.5]} 35... b5
{[%clk 0:03:08]} 36. b3 {[%clk 0:01:39.7]} 36... Bd6 {[%clk 0:02:58.6]} 37. c4
{[%clk 0:01:31.8]} 37... Nc3+ {[%clk 0:02:56.4]} 38. Ke3 {[%clk 0:01:30.1]}
38... Nxe4 {[%clk 0:02:55.1]} 39. Kxe4 {[%clk 0:01:30]} 39... bxc4 {[%clk
0:02:54.2]} 40. bxc4 {[%clk 0:01:28.9]} 40... Rh8 {[%clk 0:02:53.7]} 41. Rg2
{[%clk 0:01:26.4]} 41... Rh4+ {[%clk 0:02:52.8]} 42. Ke3 {[%clk 0:01:25.2]}
42... Bf4+ {[%clk 0:02:52]} 43. Kd3 {[%clk 0:01:23.2]} 43... Rh3+ {[%clk
0:02:50.8]} 44. Kc2 {[%clk 0:01:22.3]} 44... Ra3 {[%clk 0:02:47.1]} 45. Kb2
{[%clk 0:01:19.8]} 45... Rd3 {[%clk 0:02:43.6]} 0-1

[Event "Live Chess"]
[Site "Chess.com"]
[Date "2023.05.20"]
[Round "-"]
[White "JohanKjeldahl"]
[Black "CeladonFish"]
[Result "1-0"]
[WhiteElo "1867"]
[BlackElo "1166"]
[TimeControl "300"]
[EndTime "15:26:07 PDT"]
[Termination "JohanKjeldahl won by resignation"]

1. e4 {[%clk 0:04:57.4]} 1... d6 {[%clk 0:04:59.2]} 2. d4 {[%clk 0:04:55.3]}
2... Nf6 {[%clk 0:04:58.8]} 3. Nc3 {[%clk 0:04:54.1]} 3... g6 {[%clk 0:04:58.2]}
4. f4 {[%clk 0:04:52.3]} 4... Bg7 {[%clk 0:04:57.5]} 5. Nf3 {[%clk 0:04:51.1]}
5... O-O {[%clk 0:04:55.4]} 6. Bd3 {[%clk 0:04:50]} 6... Bg4 {[%clk 0:04:51.4]}
7. O-O {[%clk 0:04:48.2]} 7... Bxf3 {[%clk 0:04:50.3]} 8. Qxf3 {[%clk
0:04:46.5]} 8... Nc6 {[%clk 0:04:44.7]} 9. Be3 {[%clk 0:04:44.6]} 9... Qd7
{[%clk 0:04:40.5]} 10. Rad1 {[%clk 0:04:42.7]} 10... Ng4 {[%clk 0:04:39.3]} 11.
e5 {[%clk 0:04:30.7]} 11... Nxe3 {[%clk 0:04:32]} 12. Qxe3 {[%clk 0:04:29.5]}
12... dxe5 {[%clk 0:04:30.7]} 13. dxe5 {[%clk 0:04:28.5]} 13... Qe6 {[%clk
0:04:25.7]} 14. b3 {[%clk 0:04:15]} 14... Rad8 {[%clk 0:04:24.3]} 15. Ne4 {[%clk
0:04:13.2]} 15... Nd4 {[%clk 0:04:18.6]} 16. Nc5 {[%clk 0:04:06.8]} 16... Qd5
{[%clk 0:04:09.2]} 17. Ne4 {[%clk 0:04:01.8]} 17... f6 {[%clk 0:04:05.6]} 18.
Bc4 {[%clk 0:04:00.2]} 1-0

[Event "Live Chess"]
[Site "Chess.com"]
[Date "2023.05.20"]
[Round "-"]
[White "WilliamofOrange16th"]
[Black "HonestJoe1"]
[Result "1-0"]
[WhiteElo "1848"]
[BlackElo "2102"]
[TimeControl "300"]
[EndTime "15:26:09 PDT"]
[Termination "WilliamofOrange16th won on time"]

1. b3 {[%clk 0:04:53.4]} 1... g6 {[%clk 0:04:57.2]} 2. Bb2 {[%clk 0:04:48.5]}
2... Nf6 {[%clk 0:04:55.9]} 3. Bxf6 {[%clk 0:04:48.1]} 3... exf6 {[%clk
0:04:54.8]} 4. c4 {[%clk 0:04:48]} 4... Bg7 {[%clk 0:04:53.3]} 5. Nc3 {[%clk
0:04:35.3]} 5... O-O {[%clk 0:04:51.3]} 6. g3 {[%clk 0:04:34.2]} 6... d6 {[%clk
0:04:46.9]} 7. Bg2 {[%clk 0:04:33.3]} 7... Nc6 {[%clk 0:04:38.9]} 8. e3 {[%clk
0:04:31.7]} 8... Be6 {[%clk 0:04:35.2]} 9. Nge2 {[%clk 0:04:30.1]} 9... Qd7
{[%clk 0:04:33.2]} 10. Nf4 {[%clk 0:04:22.9]} 10... Rab8 {[%clk 0:04:29.1]} 11.
O-O {[%clk 0:04:21.1]} 11... Bg4 {[%clk 0:04:19.2]} 12. Qb1 {[%clk 0:04:09.3]}
12... g5 {[%clk 0:03:44.1]} 13. Nfd5 {[%clk 0:04:03.6]} 13... Ne5 {[%clk
0:03:39.4]} 14. f3 {[%clk 0:03:56.7]} 14... Be6 {[%clk 0:03:36.5]} 15. d4 {[%clk
0:03:54.1]} 15... Ng6 {[%clk 0:03:24.3]} 16. f4 {[%clk 0:03:50.9]} 16... Bh3
{[%clk 0:03:15.9]} 17. Qc2 {[%clk 0:03:39.3]} 17... c6 {[%clk 0:03:10.5]} 18.
Nb4 {[%clk 0:03:37.6]} 18... a5 {[%clk 0:02:55.9]} 19. Nd3 {[%clk 0:03:35.4]}
19... Bxg2 {[%clk 0:02:50.7]} 20. Qxg2 {[%clk 0:03:33.3]} 20... Rfe8 {[%clk
0:02:49.7]} 21. Qf2 {[%clk 0:03:29.6]} 21... d5 {[%clk 0:02:33.1]} 22. Nc5
{[%clk 0:03:26.4]} 22... Qe7 {[%clk 0:02:30.1]} 23. cxd5 {[%clk 0:03:24.4]}
23... b6 {[%clk 0:02:27]} 24. Nd3 {[%clk 0:03:03.2]} 24... Qxe3 {[%clk
0:02:23.9]} 25. Rad1 {[%clk 0:02:58.4]} 25... cxd5 {[%clk 0:02:13.2]} 26. Nxd5
{[%clk 0:02:55.7]} 26... Qe4 {[%clk 0:02:05.9]} 27. Nc3 {[%clk 0:02:52.2]} 27...
Qb7 {[%clk 0:02:00.7]} 28. f5 {[%clk 0:02:51.6]} 28... Nf8 {[%clk 0:01:57.8]}
29. Qf3 {[%clk 0:02:42.5]} 29... Nd7 {[%clk 0:01:53.8]} 30. Qxb7 {[%clk
0:02:41.1]} 30... Rxb7 {[%clk 0:01:52.7]} 31. Rfe1 {[%clk 0:02:41]} 31... Rbb8
{[%clk 0:01:49.5]} 32. Nb5 {[%clk 0:02:36.7]} 32... Bf8 {[%clk 0:01:46.4]} 33.
Kf2 {[%clk 0:02:34.2]} 33... Bb4 {[%clk 0:01:29.5]} 34. Re2 {[%clk 0:02:31.9]}
34... Rxe2+ {[%clk 0:01:25.5]} 35. Kxe2 {[%clk 0:02:30.7]} 35... Re8+ {[%clk
0:01:17.7]} 36. Kf3 {[%clk 0:02:29.4]} 36... Nb8 {[%clk 0:01:05.3]} 37. a3
{[%clk 0:02:26]} 37... Bf8 {[%clk 0:01:02.4]} 38. Rc1 {[%clk 0:02:19.5]} 38...
Rd8 {[%clk 0:00:41.3]} 39. g4 {[%clk 0:02:17.9]} 39... Kg7 {[%clk 0:00:37.6]}
40. Rc7 {[%clk 0:02:14.3]} 40... Bd6 {[%clk 0:00:31.7]} 41. Rb7 {[%clk
0:02:13.1]} 41... Bxh2 {[%clk 0:00:28.5]} 42. Rxb6 {[%clk 0:02:11.6]} 42... Bg1
{[%clk 0:00:22.1]} 43. Ke4 {[%clk 0:02:07.2]} 43... Re8+ {[%clk 0:00:19.9]} 44.
Kd5 {[%clk 0:02:06]} 44... Nd7 {[%clk 0:00:18.4]} 45. Rb7 {[%clk 0:02:04.8]}
45... Nf8 {[%clk 0:00:16.3]} 46. Nd6 {[%clk 0:02:02.4]} 46... Rd8 {[%clk
0:00:12.9]} 47. Rb6 {[%clk 0:02:00.7]} 47... Bh2 {[%clk 0:00:10.3]} 48. Nc5
{[%clk 0:01:56.8]} 48... Nd7 {[%clk 0:00:08.5]} 49. Nxd7 {[%clk 0:01:55.6]}
49... Rxd7 {[%clk 0:00:07.6]} 50. Kc5 {[%clk 0:01:55.1]} 50... h5 {[%clk
0:00:06.4]} 51. gxh5 {[%clk 0:01:51.2]} 51... Bxd6+ {[%clk 0:00:04.4]} 52. Rxd6
{[%clk 0:01:49.8]} 52... Rxd6 {[%clk 0:00:03.7]} 53. Kxd6 {[%clk 0:01:49.2]}
53... g4 {[%clk 0:00:02.8]} 54. Kc7 {[%clk 0:01:46.6]} 54... g3 {[%clk 0:00:02]}
55. d5 {[%clk 0:01:46.5]} 55... g2 {[%clk 0:00:01.3]} 56. d6 {[%clk 0:01:46.4]}
56... g1=Q {[%clk 0:00:00.3]} 57. d7 {[%clk 0:01:46.3]} 1-0

[Event "Live Chess"]
[Site "Chess.com"]
[Date "2023.05.20"]
[Round "-"]
[White "grillage"]
[Black "omisoc"]
[Result "0-1"]
[WhiteElo "1856"]
[BlackElo "2148"]
[TimeControl "300"]
[EndTime "15:26:11 PDT"]
[Termination "omisoc won by checkmate"]

1. d4 {[%clk 0:04:59.1]} 1... g6 {[%clk 0:04:55.2]} 2. Nc3 {[%clk 0:04:50.5]}
2... d5 {[%clk 0:04:52]} 3. Bf4 {[%clk 0:04:45]} 3... Bg7 {[%clk 0:04:45.5]} 4.
e3 {[%clk 0:04:42.2]} 4... a6 {[%clk 0:04:38.8]} 5. Nf3 {[%clk 0:04:40.1]} 5...
Nf6 {[%clk 0:04:34.6]} 6. h4 {[%clk 0:04:34.8]} 6... Bg4 {[%clk 0:04:30.1]} 7.
Qd2 {[%clk 0:04:32.9]} 7... Bxf3 {[%clk 0:04:27.8]} 8. gxf3 {[%clk 0:04:32.1]}
8... Nbd7 {[%clk 0:04:23.5]} 9. O-O-O {[%clk 0:04:30.2]} 9... c6 {[%clk
0:04:19.8]} 10. Be2 {[%clk 0:03:55.5]} 10... Qa5 {[%clk 0:04:06.2]} 11. Kb1
{[%clk 0:03:53]} 11... O-O-O {[%clk 0:04:01.6]} 12. e4 {[%clk 0:03:48]} 12... e6
{[%clk 0:03:55]} 13. e5 {[%clk 0:03:41.1]} 13... Ne8 {[%clk 0:03:47.8]} 14. Bg5
{[%clk 0:03:39.6]} 14... h5 {[%clk 0:03:40.5]} 15. Bxd8 {[%clk 0:03:32.5]} 15...
Qxd8 {[%clk 0:03:35.4]} 16. f4 {[%clk 0:03:30.7]} 16... Bh6 {[%clk 0:03:33.1]}
17. Na4 {[%clk 0:03:20]} 17... b5 {[%clk 0:03:27.4]} 18. Nc3 {[%clk 0:03:09.3]}
18... Qb6 {[%clk 0:03:22.4]} 19. Rde1 {[%clk 0:02:37.7]} 19... Nc7 {[%clk
0:03:20.9]} 20. Nd1 {[%clk 0:02:35]} 20... c5 {[%clk 0:03:14.2]} 21. c3 {[%clk
0:02:25.8]} 21... c4 {[%clk 0:03:09.3]} 22. f3 {[%clk 0:02:21.4]} 22... Nb8
{[%clk 0:03:03.8]} 23. Nf2 {[%clk 0:02:20.2]} 23... Nc6 {[%clk 0:03:00.6]} 24.
Nh3 {[%clk 0:02:16.2]} 24... Rd8 {[%clk 0:02:58.1]} 25. Ng5 {[%clk 0:02:14.5]}
25... Rd7 {[%clk 0:02:57]} 26. Ka1 {[%clk 0:02:09.1]} 26... Bf8 {[%clk
0:02:48.4]} 27. Bf1 {[%clk 0:01:55.9]} 27... a5 {[%clk 0:02:46.6]} 28. Bh3
{[%clk 0:01:54.1]} 28... b4 {[%clk 0:02:43.1]} 29. Rb1 {[%clk 0:01:41.2]} 29...
b3 {[%clk 0:02:38.6]} 30. a3 {[%clk 0:01:39.9]} 30... Qb5 {[%clk 0:02:36.5]} 31.
Nh7 {[%clk 0:01:29.4]} 31... Be7 {[%clk 0:02:33.8]} 32. Ng5 {[%clk 0:01:26.8]}
32... Qa4 {[%clk 0:02:30.1]} 33. Rbe1 {[%clk 0:01:18]} 33... Nb5 {[%clk
0:02:25]} 34. Nxe6 {[%clk 0:01:02.4]} 34... Bxa3 {[%clk 0:02:21]} 35. Kb1 {[%clk
0:00:57.2]} 35... Bb4 {[%clk 0:02:08.6]} 36. Kc1 {[%clk 0:00:45.6]} 36... Qa1#
{[%clk 0:02:04.3]} 0-1

[Event "Live Chess"]
[Site "Chess.com"]
[Date "2023.05.20"]
[Round "-"]
[White "wot-not"]
[Black "Jo1ts"]
[Result "1-0"]
[WhiteElo "1526"]
[BlackElo "771"]
[TimeControl "300"]
[EndTime "15:26:28 PDT"]
[Termination "wot-not won by checkmate"]

1. e4 {[%clk 0:04:56.9]} 1... e5 {[%clk 0:04:57.1]} 2. f4 {[%clk 0:04:56]} 2...
exf4 {[%clk 0:04:52]} 3. Nf3 {[%clk 0:04:54.7]} 3... Nf6 {[%clk 0:04:46.6]} 4.
e5 {[%clk 0:04:53.2]} 4... Ne4 {[%clk 0:04:41]} 5. d4 {[%clk 0:04:46.3]} 5... d6
{[%clk 0:04:37.5]} 6. Bd3 {[%clk 0:04:42.3]} 6... Ng5 {[%clk 0:04:25.6]} 7. Bxf4
{[%clk 0:04:34.3]} 7... Nxf3+ {[%clk 0:04:18.5]} 8. Qxf3 {[%clk 0:04:32.6]} 8...
dxe5 {[%clk 0:04:17.3]} 9. Bxe5 {[%clk 0:04:30.7]} 9... Nc6 {[%clk 0:04:16.6]}
10. O-O {[%clk 0:04:25.2]} 10... Nxd4 {[%clk 0:04:11]} 11. Qxf7# {[%clk
0:04:21]} 1-0

[Event "Live Chess"]
[Site "Chess.com"]
[Date "2023.05.20"]
[Round "-"]
[White "KeithArkell"]
[Black "DaveL5678"]
[Result "1-0"]
[WhiteElo "2607"]
[BlackElo "1023"]
[TimeControl "300"]
[EndTime "15:26:34 PDT"]
[Termination "KeithArkell won by resignation"]

1. d4 {[%clk 0:04:58.7]} 1... Nf6 {[%clk 0:04:53]} 2. Nf3 {[%clk 0:04:57.7]}
2... g6 {[%clk 0:04:51.1]} 3. c4 {[%clk 0:04:57]} 3... Bg7 {[%clk 0:04:50.1]} 4.
Nc3 {[%clk 0:04:56.4]} 4... d5 {[%clk 0:04:44.7]} 5. cxd5 {[%clk 0:04:55.2]}
5... Nxd5 {[%clk 0:04:41.7]} 6. g3 {[%clk 0:04:54.6]} 6... Nxc3 {[%clk
0:04:36.4]} 7. bxc3 {[%clk 0:04:54.5]} 7... b6 {[%clk 0:04:31.8]} 8. Bg2 {[%clk
0:04:53.6]} 8... Bb7 {[%clk 0:04:29.2]} 9. O-O {[%clk 0:04:52.6]} 9... Nd7
{[%clk 0:04:27.5]} 10. a4 {[%clk 0:04:51.6]} 10... O-O {[%clk 0:04:24.3]} 11. a5
{[%clk 0:04:50.9]} 11... Nf6 {[%clk 0:04:17.7]} 12. Ba3 {[%clk 0:04:43]} 12...
Nd5 {[%clk 0:04:03.9]} 13. c4 {[%clk 0:04:41.5]} 13... Nc3 {[%clk 0:03:47.5]}
14. Qc2 {[%clk 0:04:40.5]} 14... Bxd4 {[%clk 0:03:39]} 15. Nxd4 {[%clk
0:04:35.8]} 15... Qxd4 {[%clk 0:03:33.7]} 16. Bxb7 {[%clk 0:04:33.2]} 16... Rad8
{[%clk 0:03:26.8]} 17. Bf3 {[%clk 0:04:28.4]} 17... Rd7 {[%clk 0:03:14.1]} 18.
Bb2 {[%clk 0:04:27.1]} 18... Nxe2+ {[%clk 0:02:58.9]} 19. Qxe2 {[%clk
0:04:25.3]} 19... Qd6 {[%clk 0:02:45.3]} 20. Rad1 {[%clk 0:04:20.2]} 20... Qe6
{[%clk 0:02:43.8]} 21. Qxe6 {[%clk 0:04:18.9]} 21... fxe6 {[%clk 0:02:41.1]} 22.
Rxd7 {[%clk 0:04:17.9]} 1-0